bitfinex-derivatives/quotes_SOLF0:USTF0_20250914
["timestamp","ask_amount","ask_price","bid_price","bid_amount"]
[1757836881312,6.92,246.25,246.18,0.02940584]
[1757836881915,2.85427627,246.24,246.18,0.02940584]
[1757836882214,6.92,246.25,246.18,0.02940584]
[1757836882516,2.85491274,246.24,246.18,0.02940584]
[1757836882715,6.92,246.25,246.18,0.02940584]
[1757836882916,2.85491165,246.24,246.18,0.02940584]
[1757836883108,6.92,246.25,246.18,0.02940584]
[1757836883311,2.85486438,246.24,246.18,0.02940584]
[1757836883516,6.92,246.25,246.18,0.02940584]
[1757836883717,2.8554139,246.24,246.18,0.02940584]
[1757836883916,6.92,246.22,246.18,0.02940584]
[1757836884118,6.92,246.3,246.18,0.02940584]
[1757836884319,6.92,246.28,246.18,0.02940584]
[1757836884519,6.92,246.26,246.18,0.02940584]
[1757836884819,6.92,246.24,246.18,0.02940584]
[1757836885021,2.85531118,246.23,246.18,0.02940584]
[1757836885215,6.92,246.22,246.18,0.02940584]
[1757836885422,6.92,246.3,246.18,0.02940584]
[1757836885620,6.92,246.28,246.18,0.02940584]
[1757836885815,6.92,246.26,246.18,0.02940584]
[1757836886021,6.92,246.24,246.18,0.02940584]
[1757836886219,6.92,246.22,246.18,0.02940584]
[1757836886517,6.92,246.2,246.18,0.02940584]
[1757836886721,9.77522201,246.19,246.18,0.02940584]
[1757836887926,10.17522201,246.19,246.07,6.83]
[1757836888125,6.56,246.17,246.07,6.83]
[1757836888321,6.56,246.15,246.07,6.83]
[1757836889115,0.03017122,246.13,246.07,6.83]
[1757836889821,6.56,246.12,246.0,7.01]
[1757836892428,6.56,246.1,245.95,7.01]
[1757836892925,6.56,246.09,245.95,8.31590383]
[1757836893121,12.17,246.21,245.99,1.30590383]
[1757836893122,0.02909917,246.05,245.99,1.30590383]
[1757836893331,0.02909917,246.05,246.0,7.01]
[1757836893520,6.56,246.14,246.0,7.01]
[1757836893723,2.85029509,246.13,246.0,7.01]
[1757836893923,0.02776873,246.05,246.0,7.01]
[1757836894927,0.02776873,246.05,246.04,7.01]
[1757836895827,0.02776873,246.05,246.04,69.01]
[1757836896528,0.02776873,246.05,246.04,70.24629072]
[1757836899331,0.02776873,246.05,246.04,69.84629072]
[1757836900132,0.02776873,246.05,246.04,69.01]
[1757836906540,0.02776873,246.05,246.04,69.84629072]
[1757836911245,0.02776873,246.05,246.04,7.84629072]
[1757836913144,0.02776873,246.05,246.04,7.01]
[1757836916646,7.39629072,246.27,246.04,7.41]
[1757836916847,6.56,246.25,246.13,7.01]
[1757836917047,2.85072057,246.24,246.15,0.83629072]
[1757836917347,6.56,246.25,246.15,0.83629072]
[1757836917547,0.83629072,246.27,246.15,0.83629072]
[1757836917548,2.85095423,246.24,246.15,0.83629072]
[1757836917750,6.56,246.23,246.15,0.83629072]
[1757836917957,6.56,246.23,246.18,0.02737966]
[1757836918757,0.83629072,246.27,246.18,0.02737966]
[1757836918956,6.53,246.26,246.18,0.02737966]
[1757836920059,6.53,246.26,246.18,0.86367038]
[1757836921052,6.53,246.26,246.19,7.82629072]
[1757836922657,6.53,246.26,246.19,6.99]
[1757836923053,6.53,246.26,246.2,0.83629072]
[1757836925964,6.53,246.26,246.18,7.01737966]
[1757836931063,6.53,246.26,246.18,7.85367038]
[1757836932258,6.53,246.31,246.22,6.99]
[1757836932461,6.53,246.31,246.24,0.83629072]
[1757836933170,6.53,246.31,246.25,0.02651094]
[1757836933868,6.53,246.31,246.26,6.99]
[1757836934065,6.53,246.31,246.25,7.01651094]
[1757836934462,0.83629072,246.3,246.25,0.02651094]
[1757836934658,6.53,246.29,246.25,0.02651094]
[1757836935258,0.83629072,246.3,246.25,0.02651094]
[1757836935468,6.53,246.29,246.25,0.02651094]
[1757836935670,0.83629072,246.3,246.25,0.02651094]
[1757836935870,24.59426045,246.41,246.25,0.02651094]
[1757836935871,6.53,246.33,246.25,0.02651094]
[1757836936071,6.53,246.3,246.25,0.02651094]
[1757836936268,6.53,246.3,246.15,18.26]
[1757836936269,6.53,246.27,246.17,0.83629072]
[1757836936474,6.53,246.27,246.15,7.82629072]
[1757836936669,6.53,246.27,246.15,6.99]
[1757836937173,6.2,246.34,246.15,6.99]
[1757836937174,6.53,246.24,246.15,6.99]
[1757836937677,6.53,246.24,246.12,7.42]
[1757836938069,6.53,246.21,246.12,7.42]
[1757836940078,6.53,246.21,246.13,6.99]
[1757836946682,6.53,246.21,246.13,68.99]
[1757836950582,6.53,246.21,246.15,0.83629072]
[1757836955686,6.53,246.21,246.13,6.99]
[1757836955888,6.53,246.21,246.13,7.82629072]
[1757836956382,6.53,246.21,246.13,6.99]
[1757836958092,6.53,246.21,246.12,7.42]
[1757836958989,6.53,246.21,246.1,8.13584786]
[1757836959191,6.94,246.21,246.09,107.39205865]
[1757836959587,0.02605553,246.22,246.09,107.39205865]
[1757836959789,6.94,246.2,246.06,6.83]
[1757836959999,6.94,246.18,246.02,6.83]
[1757836960692,0.02600317,246.12,246.02,6.83]
[1757836960991,6.94,246.11,246.02,6.83]
[1757836961396,0.02600317,246.12,245.98,36.77]
[1757836961889,6.94,246.14,245.98,36.77]
[1757836962094,2.85504262,246.13,245.98,36.77]
[1757836962288,6.94,246.16,245.98,36.77]
[1757836962496,2.85269583,246.15,245.98,36.77]
[1757836962695,0.02700423,246.09,245.98,36.77]
[1757836962894,6.94,246.08,245.98,6.83]
[1757836966594,0.02700423,246.09,245.94,99.36089123]
[1757836966797,6.94,246.08,245.94,99.36089123]
[1757836966999,6.94,246.12,245.94,99.36089123]
[1757836967197,6.94,246.12,245.92,0.70730989]
[1757836967394,6.94,246.1,245.92,1.30584786]
[1757836967599,6.94,246.08,245.93,6.83]
[1757836967800,36.56,246.08,245.93,6.83]
[1757836967998,6.96712234,246.03,245.93,6.83]
[1757836968404,6.96712234,246.03,245.88,6.83]
[1757836968801,6.94,246.03,245.88,6.83]
[1757836969199,1.30584786,246.06,245.88,6.83]
[1757836969200,6.94,245.97,245.88,6.83]
[1757836971202,6.94,245.95,245.81,6.83]
[1757836971506,6.94,245.95,245.81,8.13584786]
[1757836972005,0.02693313,245.9,245.81,8.13584786]
[1757836974007,0.02693313,245.9,245.82,6.83]
[1757836981817,0.02693313,245.9,245.86,6.94]
[1757836984518,0.02693313,245.9,245.85,1.30584786]
[1757836984912,0.02693313,245.9,245.86,6.94]
[1757836985108,0.02693313,245.9,245.85,1.30584786]
[1757836986108,0.02693313,245.9,245.86,6.94]
[1757836986312,0.02693313,245.9,245.89,8.24584786]
[1757836988023,6.73,246.01,245.89,8.64584786]
[1757836988224,6.73,246.06,245.89,8.24584786]
[1757836988817,6.73,246.06,245.93,1.30584786]
[1757836989124,6.73,246.06,245.94,6.94]
[1757836989422,6.73,246.06,245.97,0.02920489]
[1757836991026,6.73,246.06,245.98,6.94]
[1757836993919,1.30584786,246.15,245.98,6.94]
[1757836993920,6.73,246.14,245.98,6.94]
[1757836994626,6.73,246.14,246.04,0.02613422]
[1757836995227,6.73,246.14,246.05,6.94]
[1757836995624,6.73,246.14,246.05,8.24584786]
[1757836995825,6.73,246.14,246.05,6.94]
[1757836996128,6.73,246.14,246.05,8.24584786]
[1757836998229,6.73,246.14,246.06,62.0]
[1757836998425,6.73,246.14,246.05,6.94]
[1757836998627,6.73,246.14,246.04,0.02613422]
[1757837000127,1.30584786,246.12,246.04,0.02613422]
[1757837000332,6.73,246.11,246.04,0.02613422]
[1757837002627,7.13,246.11,246.04,0.02613422]
[1757837003438,1.30584786,246.08,246.04,0.02613422]
[1757837003739,6.73,246.07,246.04,0.02613422]
[1757837004435,6.73,246.07,245.92,6.94]
[1757837005635,6.73,246.03,245.87,6.94]
[1757837007242,6.73,246.03,245.91,6.94]
[1757837009334,1.30584786,246.02,245.87,6.57]
[1757837009534,1.30584786,245.98,245.85,25.16]
[1757837009841,6.54,245.97,245.85,25.16]
[1757837010442,1.30584786,245.98,245.85,25.16]
[1757837010743,0.02581654,245.93,245.86,6.57]
[1757837011141,6.54,245.97,245.86,6.57]
[1757837011647,0.02595214,245.92,245.86,6.57]
[1757837018448,0.02595214,245.92,245.89,7.40761309]
[1757837018747,0.02595214,245.92,245.9,6.57]
[1757837019949,0.02595214,245.92,245.89,0.83761309]
[1757837020848,0.02595214,245.92,245.9,6.57]
[1757837021044,0.02595214,245.92,245.89,0.83761309]
[1757837021747,0.02595214,245.92,245.9,6.57]
[1757837021948,0.02595214,245.92,245.89,0.83761309]
[1757837022250,0.02595214,245.92,245.9,6.57]
[1757837022448,0.02595214,245.92,245.89,0.83761309]
[1757837022949,0.02595214,245.92,245.9,6.57]
[1757837023446,0.02595214,245.92,245.89,0.83761309]
[1757837023749,6.54,246.02,245.91,6.57]
[1757837023951,6.54,246.02,245.98,6.57]
[1757837025050,6.54,246.02,245.98,6.59693582]
[1757837025847,0.83761309,246.09,245.98,0.02693582]
[1757837026046,6.54,246.08,245.98,0.02693582]
[1757837026452,6.54,246.08,246.0,0.83761309]
[1757837026651,6.54,246.08,246.0,7.40761309]
[1757837028055,6.54,246.08,246.03,7.40761309]
[1757837028754,6.54,246.08,246.03,0.83761309]
[1757837028956,6.54,246.08,246.03,7.40761309]
[1757837029150,6.54,246.08,246.04,6.57]
[1757837029645,6.54,246.15,246.04,6.57]
[1757837030448,6.54,246.15,246.07,0.02579592]
[1757837030657,24.74,246.18,246.08,6.57]
[1757837030950,24.74,246.18,246.09,0.83761309]
[1757837032347,6.54,246.17,246.09,0.83761309]
[1757837034258,6.54,246.22,246.13,6.57]
[1757837035055,6.54,246.22,246.15,0.02614426]
[1757837039566,6.54,246.22,246.15,0.86375735]
[1757837042576,6.54,246.22,246.16,6.64]
[1757837043962,6.54,246.22,246.15,0.86375735]
[1757837044882,6.54,246.22,246.18,0.83761309]
[1757837045069,6.58,246.31,246.21,0.83761309]
[1757837045273,6.58,246.31,246.24,0.83761309]
[1757837045463,6.58,246.31,246.22,6.64]
[1757837045975,6.58,246.31,246.25,0.02611622]
[1757837051368,0.83761309,246.38,246.26,6.64]
[1757837051569,6.58,246.37,246.26,6.64]
[1757837052867,6.58,246.37,246.28,0.83761309]
[1757837053279,6.58,246.37,246.26,6.64]
[1757837053471,6.58,246.37,246.28,0.83761309]
[1757837053672,6.58,246.37,246.3,0.02604256]
[1757837055181,7.41761309,246.37,246.3,0.02604256]
[1757837056476,6.58,246.37,246.3,0.02604256]
[1757837056870,0.83761309,246.41,246.31,6.64]
[1757837057075,6.58,246.4,246.31,6.64]
[1757837057677,6.58,246.4,246.33,0.02727269]
[1757837062678,6.58,246.4,246.34,6.64]
[1757837063380,7.41761309,246.44,246.34,6.64]
[1757837063776,7.41761309,246.44,246.35,62.0]
[1757837064185,7.41761309,246.44,246.37,0.02569686]
[1757837067082,6.58,246.4,246.37,0.02569686]
[1757837067281,0.83761309,246.41,246.37,0.02569686]
[1757837067584,6.58,246.4,246.37,0.02569686]
[1757837067784,6.68,246.4,246.37,0.02569686]
[1757837068182,0.83761309,246.41,246.37,0.02569686]
[1757837068482,6.68,246.4,246.37,0.02569686]
[1757837068874,0.83761309,246.41,246.37,0.02569686]
[1757837069080,36.32,246.5,246.37,0.02569686]
[1757837069385,6.68,246.39,246.37,0.02569686]
[1757837069785,0.83761309,246.4,246.37,0.02569686]
[1757837070084,6.68,246.39,246.37,0.02569686]
[1757837070282,0.83761309,246.41,246.37,0.02569686]
[1757837070583,6.68,246.4,246.37,0.02569686]
[1757837071383,36.32,246.5,246.37,0.02569686]
[1757837071590,6.68,246.41,246.37,0.02569686]
[1757837072192,6.68,246.41,246.37,6.48569686]
[1757837073188,6.68,246.41,246.38,6.46]
[1757837074193,6.68,246.44,246.37,0.02569686]
[1757837074581,6.68,246.44,246.34,6.46]
[1757837074896,6.68,246.44,246.38,0.03044734]
[1757837075300,7.51761309,246.44,246.38,0.03044734]
[1757837078495,6.68,246.44,246.38,0.03044734]
[1757837085507,6.68,246.44,246.39,62.0]
[1757837085709,6.68,246.44,246.39,68.46]
[1757837086201,6.68,246.44,246.4,6.46]
[1757837087498,1.30373988,246.52,246.4,6.46]
[1757837087707,6.68,246.51,246.4,6.46]
[1757837088207,6.68,246.51,246.43,0.02993863]
[1757837090105,6.68,246.51,246.43,6.48993863]
[1757837104117,6.59,246.57,246.43,6.48993863]
[1757837104516,6.59,246.57,246.43,6.46]
[1757837104812,6.59,246.57,246.48,0.02865677]
[1757837120028,1.30373988,246.58,246.48,0.02865677]
[1757837120029,1.30373988,246.54,246.48,0.02865677]
[1757837120230,6.59,246.53,246.48,0.02865677]
[1757837123731,2.85690601,246.52,246.48,0.02865677]
[1757837123931,6.59,246.51,246.48,0.02865677]
[1757837124137,6.59,246.49,246.48,0.02865677]
[1757837125137,6.59,246.49,246.38,6.84]
[1757837126438,0.03114895,246.46,246.4,1.30373988]
[1757837126632,0.03114895,246.46,246.41,13.66487184]
[1757837126831,0.03114895,246.46,246.43,6.84]
[1757837127242,0.03114895,246.46,246.42,6.84]
[1757837127438,0.03114895,246.46,246.41,6.82487184]
[1757837127645,0.03114895,246.46,246.42,6.84]
[1757837127943,0.03114895,246.46,246.42,6.71]
[1757837128637,0.03114895,246.46,246.41,6.82487184]
[1757837129349,0.03114895,246.46,246.42,6.71]
[1757837129745,0.03114895,246.46,246.41,6.82487184]
[1757837130143,0.03114895,246.46,246.42,7.01]
[1757837130448,0.03114895,246.46,246.42,62.0]
[1757837130845,0.03114895,246.46,246.43,7.01]
[1757837131042,0.03114895,246.46,246.42,7.01]
[1757837131249,0.03114895,246.46,246.45,7.01]
[1757837132151,0.03114895,246.46,246.42,6.82487184]
[1757837132347,0.03114895,246.46,246.42,7.01]
[1757837132546,0.03114895,246.46,246.44,7.01]
[1757837133150,0.03114895,246.46,246.43,1.30373988]
[1757837133449,0.03114895,246.46,246.44,7.01]
[1757837133643,0.03114895,246.46,246.41,6.82487184]
[1757837133844,0.03114895,246.46,246.42,7.01]
[1757837134257,6.71114895,246.46,246.42,7.01]
[1757837134549,6.71114895,246.46,246.38,42.1]
[1757837134550,6.71114895,246.46,246.38,6.82487184]
[1757837134751,6.71114895,246.46,246.37,13.83487184]
[1757837134952,6.71114895,246.46,246.37,7.01]
[1757837137249,6.71114895,246.46,246.37,69.01]
[1757837139451,6.71114895,246.46,246.33,280.81373988]
[1757837139452,0.03114895,246.46,246.33,280.81373988]
[1757837139657,6.68,246.45,246.33,380.39373988]
[1757837139845,0.03114895,246.46,246.33,380.39373988]
[1757837140150,6.68,246.45,246.33,380.39373988]
[1757837140350,6.68,246.45,246.35,0.83436745]
[1757837141752,6.68,246.45,246.34,0.83436745]
[1757837142162,6.68,246.42,246.31,0.83436745]
[1757837142954,6.68,246.38,246.31,0.83436745]
[1757837143455,0.02767,246.39,246.3,112.52220808]
[1757837143759,6.68,246.38,246.29,0.83436745]
[1757837143954,6.68,246.38,246.32,0.83436745]
[1757837144761,0.02757155,246.37,246.32,0.83436745]
[1757837145061,6.68,246.36,246.32,0.83436745]
[1757837145457,0.02757155,246.37,246.32,0.83436745]
[1757837145656,6.68,246.36,246.32,0.83436745]
[1757837145856,0.02757155,246.37,246.32,0.83436745]
[1757837146057,6.68,246.36,246.32,0.83436745]
[1757837146265,0.02757155,246.37,246.32,0.83436745]
[1757837146462,6.68,246.36,246.32,0.83436745]
[1757837146962,6.68,246.36,246.29,0.83436745]
[1757837147165,6.68,246.36,246.26,0.83436745]
[1757837147864,6.68,246.36,246.24,0.83436745]
[1757837148362,6.68,246.33,246.24,0.83436745]
[1757837148562,6.68,246.33,246.23,0.83436745]
[1757837148760,6.68,246.33,246.23,7.84436745]
[1757837148965,6.68,246.33,246.26,0.83436745]
[1757837149162,0.02621419,246.3,246.26,0.83436745]
[1757837149460,6.68,246.29,246.26,0.83436745]
[1757837149658,0.02621419,246.3,246.26,0.83436745]
[1757837150262,6.68,246.29,246.26,0.83436745]
[1757837150462,0.02621419,246.3,246.26,0.83436745]
[1757837150656,6.68,246.29,246.23,0.83436745]
[1757837154964,6.68,246.29,246.19,279.55]
[1757837154965,6.68,246.29,246.26,0.83436745]
[1757837155160,6.52,246.29,246.26,0.83436745]
[1757837155360,0.02621419,246.3,246.26,0.83436745]
[1757837155868,6.52,246.29,246.26,0.83436745]
[1757837156272,0.02621419,246.3,246.26,0.83436745]
[1757837156667,6.52,246.29,246.26,0.83436745]
[1757837156968,0.02621419,246.3,246.26,0.83436745]
[1757837157773,6.74,246.29,246.26,0.83436745]
[1757837157974,0.02621419,246.3,246.26,0.83436745]
[1757837158369,6.74,246.29,246.26,0.83436745]
[1757837158665,0.02621419,246.3,246.26,0.83436745]
[1757837159267,6.74,246.29,246.26,0.83436745]
[1757837159463,6.74,246.29,246.23,0.83436745]
[1757837160369,0.02621419,246.3,246.27,6.46]
[1757837160672,0.02621419,246.3,246.18,161.6]
[1757837160673,6.76621419,246.3,246.28,0.83436745]
[1757837160874,0.02621419,246.3,246.28,0.83436745]
[1757837161676,6.76621419,246.3,246.28,0.83436745]
[1757837161865,6.74,246.29,246.26,0.83436745]
[1757837163271,0.02621419,246.3,246.26,0.83436745]
[1757837163473,6.74,246.29,246.22,0.83436745]
[1757837172479,6.74,246.29,246.19,7.29436745]
[1757837174584,0.83436745,246.28,246.15,7.29436745]
[1757837174881,6.74,246.27,246.15,7.29436745]
[1757837175482,0.83436745,246.25,246.15,6.46]
[1757837175684,0.02577,246.23,246.12,127.8110442]
[1757837176081,6.74,246.22,246.12,127.8110442]
[1757837177284,6.74,246.22,246.12,126.97667675]
[1757837179285,6.74,246.22,246.11,6.46]
[1757837179493,7.57436745,246.22,246.11,6.46]
[1757837180593,7.57436745,246.22,246.07,0.83436745]
[1757837180789,0.83436745,246.19,246.07,0.83436745]
[1757837181093,6.74,246.18,246.07,0.83436745]
[1757837181293,6.77102795,246.15,246.07,0.83436745]
[1757837182292,6.77102795,246.15,246.06,6.46]
[1757837182688,0.03102795,246.15,246.11,0.83436745]
[1757837182893,0.03102795,246.15,246.14,7.29436745]
[1757837184489,0.03102795,246.15,246.14,6.46]
[1757837184690,0.03102795,246.15,246.14,7.29436745]
[1757837190694,0.03102795,246.15,246.14,6.46]
[1757837200812,6.81,246.25,246.14,6.86]
[1757837201113,6.81,246.25,246.14,6.46]
[1757837201711,6.81,246.25,246.16,7.04]
[1757837202012,6.81,246.25,246.17,0.02887894]
[1757837203011,6.81,246.25,246.18,7.04]
[1757837204414,6.81,246.33,246.18,7.04]
[1757837205307,6.81,246.33,246.23,0.02953146]
[1757837205905,6.81,246.33,246.24,7.04]
[1757837211119,6.81,246.3,246.23,0.02953146]
[1757837211619,6.81,246.3,246.16,7.04]
[1757837211816,6.81,246.3,246.24,0.02713566]
[1757837212122,1.30578841,246.27,246.24,0.02713566]
[1757837212327,6.81,246.26,246.24,0.02713566]
[1757837213222,1.30578841,246.27,246.24,0.02713566]
[1757837214022,6.81,246.26,246.24,0.02713566]
[1757837214324,1.30578841,246.27,246.24,0.02713566]
[1757837215226,6.79,246.26,246.24,0.02713566]
[1757837216623,1.30578841,246.27,246.24,0.02713566]
[1757837216826,6.79,246.26,246.24,0.02713566]
[1757837217822,1.30578841,246.27,246.24,0.02713566]
[1757837218319,7.05,246.26,246.24,0.02713566]
[1757837218826,1.30578841,246.27,246.24,0.02713566]
[1757837219026,7.05,246.26,246.24,0.02713566]
[1757837221727,7.45,246.26,246.24,0.02713566]
[1757837223528,9.91090172,246.25,246.24,0.02713566]
[1757837225434,7.05,246.25,246.24,0.02713566]
[1757837225634,7.05,246.3,246.24,0.02713566]
[1757837225825,7.05,246.28,246.24,0.02713566]
[1757837226029,7.05,246.3,246.24,0.02713566]
[1757837226332,7.05,246.28,246.24,0.02713566]
[1757837226532,7.05,246.3,246.24,0.02713566]
[1757837226728,72.96578841,246.31,246.24,0.02713566]
[1757837226729,2.86265063,246.29,246.24,0.02713566]
[1757837226925,7.05,246.27,246.24,0.02713566]
[1757837228334,7.05,246.31,246.24,0.02713566]
[1757837228536,36.86,246.36,246.24,0.02713566]
[1757837228838,9.91454386,246.35,246.25,6.66]
[1757837229032,2.86454386,246.34,246.25,6.66]
[1757837229232,2.86454386,246.33,246.25,6.66]
[1757837229431,7.05,246.35,246.25,6.66]
[1757837229641,2.84432845,246.34,246.25,6.66]
[1757837230337,7.05,246.32,246.25,6.66]
[1757837231338,43.91,246.36,246.25,6.66]
[1757837231636,2.84262944,246.35,246.25,6.66]
[1757837232138,43.91,246.36,246.25,6.66]
[1757837234944,36.86,246.36,246.25,6.66]
[1757837235238,7.05,246.4,246.27,6.66]
[1757837235632,272.84,246.43,246.27,6.66]
[1757837235935,97.94655689,246.44,246.31,0.02787801]
[1757837236239,97.94655689,246.44,246.32,6.66]
[1757837238038,97.94655689,246.44,246.32,68.66]
[1757837238334,7.05,246.43,246.32,68.66]
[1757837238943,7.05,246.43,246.32,6.66]
[1757837240238,7.05,246.39,246.31,0.02787801]
[1757837243841,7.05,246.35,246.31,0.02787801]
[1757837245437,1.30578841,246.36,246.31,0.02787801]
[1757837245844,7.05,246.35,246.31,0.02787801]
[1757837246347,8.35578841,246.32,246.31,0.02787801]
[1757837247244,8.35578841,246.37,246.31,0.02787801]
[1757837250650,7.95578841,246.41,246.31,6.40787801]
[1757837251644,6.65,246.41,246.31,6.40787801]
[1757837253449,90.89655689,246.44,246.31,6.40787801]
[1757837255255,280.67578841,246.46,246.31,6.40787801]
[1757837255649,280.67578841,246.46,246.31,6.38]
[1757837255950,280.67578841,246.46,246.32,6.38]
[1757837256356,7.95578841,246.46,246.37,6.38]
[1757837259345,7.95578841,246.46,246.36,0.03006523]
[1757837262459,6.65,246.4,246.36,0.03006523]
[1757837262958,0.8346458,246.44,246.37,6.38]
[1757837263358,6.65,246.46,246.37,6.38]
[1757837263657,0.8346458,246.44,246.38,0.02866142]
[1757837265061,6.65,246.46,246.38,0.02866142]
[1757837265265,0.8346458,246.45,246.38,0.02866142]
[1757837267862,0.8346458,246.44,246.38,0.02866142]
[1757837270760,0.8346458,246.44,246.39,6.38]
[1757837270960,6.65,246.46,246.39,6.38]
[1757837271165,0.8346458,246.47,246.39,6.38]
[1757837273467,7.4846458,246.5,246.39,6.38]
[1757837276468,7.4846458,246.5,246.4,62.0]
[1757837277072,7.4846458,246.5,246.41,6.43]
[1757837277760,7.4846458,246.5,246.43,0.02854997]
[1757837277967,0.8346458,246.47,246.43,0.02854997]
[1757837278269,6.48,246.46,246.43,0.02854997]
[1757837279164,0.8346458,246.47,246.43,0.02854997]
[1757837279366,6.48,246.46,246.43,0.02854997]
[1757837280171,0.8346458,246.47,246.43,0.02854997]
[1757837280373,6.48,246.46,246.43,0.02854997]
[1757837280572,0.8346458,246.47,246.43,0.02854997]
[1757837280975,6.48,246.46,246.43,0.02854997]
[1757837281174,0.8346458,246.47,246.43,0.02854997]
[1757837281375,6.48,246.46,246.43,0.02854997]
[1757837281571,0.8346458,246.47,246.43,0.02854997]
[1757837281771,6.48,246.46,246.43,0.02854997]
[1757837281975,0.8346458,246.47,246.44,6.7]
[1757837283482,0.8346458,246.5,246.44,6.7]
[1757837284186,6.48,246.51,246.44,6.7]
[1757837284882,0.8346458,246.53,246.44,6.7]
[1757837285082,0.8346458,246.53,246.43,0.02854997]
[1757837285083,0.8346458,246.47,246.43,0.02854997]
[1757837285286,7.3146458,246.44,246.43,0.02854997]
[1757837285488,7.3146458,246.44,246.36,6.7]
[1757837285785,0.8346458,246.44,246.41,0.02807629]
[1757837285987,6.48,246.43,246.41,0.02807629]
[1757837286284,0.8346458,246.43,246.41,0.02807629]
[1757837286588,7.3146458,246.43,246.41,0.02807629]
[1757837288184,0.8346458,246.43,246.41,0.02807629]
[1757837288383,6.48,246.42,246.41,0.02807629]
[1757837289587,6.48,246.42,244.69,63.69880387]
[1757837289791,0.8346458,246.2,245.96,6.7]
[1757837290091,0.8346458,246.06,245.96,6.7]
[1757837290392,0.5,246.18,245.96,6.7]
[1757837290587,0.8346458,246.16,246.09,1.64]
[1757837290785,0.8346458,246.2,246.11,1.64]
[1757837290989,0.8346458,246.24,246.16,1.64]
[1757837291286,3.21083541,246.23,246.12,0.8346458]
[1757837291490,3.21083541,246.22,246.15,1.64]
[1757837291683,3.21083541,246.21,246.14,1.64]
[1757837291884,3.21083541,246.2,246.14,1.64]
[1757837292084,3.21083541,246.19,246.14,1.64]
[1757837292287,3.21083541,246.18,246.14,1.64]
[1757837292486,0.8346458,246.24,246.14,1.64]
[1757837292687,0.8346458,246.21,246.14,1.64]
[1757837292883,3.20065418,246.2,246.14,1.64]
[1757837293091,3.20065418,246.19,246.14,1.64]
[1757837293288,3.20065418,246.18,246.14,1.64]
[1757837293491,31.66716308,246.29,246.05,6.7]
[1757837293689,0.8346458,246.22,246.1,0.8346458]
[1757837293889,3.32546176,246.21,246.08,6.7]
[1757837294085,3.32546176,246.2,246.15,1.64]
[1757837294385,0.8346458,246.22,246.15,1.64]
[1757837294589,3.19003498,246.21,246.15,1.64]
[1757837294790,3.19003498,246.2,246.15,1.64]
[1757837294994,0.8346458,246.22,246.15,1.64]
[1757837295196,3.16549817,246.21,246.15,1.64]
[1757837295394,3.16549817,246.2,246.15,1.64]
[1757837295597,4.00014397,246.19,246.15,1.64]
[1757837295794,3.16549817,246.18,246.15,1.64]
[1757837295997,3.16549817,246.18,246.08,6.7]
[1757837295998,0.8346458,246.23,246.18,1.64]
[1757837296196,3.10318933,246.22,246.08,6.7]
[1757837296398,3.10318933,246.22,246.18,1.64]
[1757837296696,0.8346458,246.2,246.18,1.64]
[1757837296896,3.10318933,246.19,246.08,6.7]
[1757837297097,3.10318933,246.19,246.15,1.64]
[1757837298595,0.8346458,246.2,246.15,1.64]
[1757837299898,0.8346458,246.17,246.15,1.64]
[1757837300898,4.52838563,246.38,246.17,6.7]
[1757837301099,0.8346458,246.32,246.18,0.8346458]
[1757837301299,0.8346458,246.2,246.1,6.7]
[1757837301499,0.8346458,246.2,246.08,0.8346458]
[1757837301806,0.8346458,246.2,246.09,6.7]